bitfinex/quotes_BTCUSD_20251224
["timestamp","ask_amount","ask_price","bid_price","bid_amount"]
[1766572294993,0.0043788,87099.0,87097.0,0.06888863]
[1766572295189,0.0038298,87099.0,87097.0,0.06888863]
[1766572295570,0.0038298,87099.0,87098.0,0.05740659]
[1766572296489,0.0038298,87099.0,87097.0,0.06888863]
[1766572296928,0.0038298,87099.0,87098.0,0.05740659]
[1766572297844,0.0038298,87099.0,87097.0,0.06888863]
[1766572298364,0.0038298,87099.0,87098.0,0.05740659]
[1766572298647,0.0038298,87099.0,87097.0,0.05740719]
[1766572299285,0.0038298,87099.0,87098.0,0.05740659]
[1766572299740,0.0038298,87099.0,87097.0,0.05740719]
[1766572300194,0.15706166,87107.0,87098.0,0.01148131]
[1766572300411,0.13225,87107.0,87098.0,0.01148131]
[1766572300851,0.13225,87107.0,87097.0,0.01148145]
[1766572301041,0.13225,87107.0,87097.0,0.06888823]
[1766572301279,0.1245598,87106.0,87097.0,0.01148145]
[1766572301857,0.1245598,87106.0,87101.0,0.01148092]
[1766572301858,0.0032798,87106.0,87101.0,0.01148092]
[1766572302061,0.0032798,87106.0,87100.0,0.01148105]
[1766572302491,0.0032798,87106.0,87101.0,0.01148092]
[1766572302681,0.0032798,87106.0,87100.0,0.06888616]
[1766572302849,0.0032798,87106.0,87101.0,0.01148092]
[1766572303175,0.12073,87111.0,87101.0,0.01148092]
[1766572303813,0.12073,87111.0,87100.0,0.06888621]
[1766572303954,0.12073,87111.0,87098.0,0.01152]
[1766572304155,0.18960845,87110.0,87098.0,0.06892609]
[1766572304358,0.18960846,87110.0,87098.0,0.0804074]
[1766572304673,0.12073,87110.0,87100.0,0.01148105]
[1766572304890,0.12073,87110.0,87100.0,0.06888583]
[1766572305704,0.13220973,87110.0,87099.0,0.01148118]
[1766572306868,0.12073,87110.0,87099.0,0.06888702]
[1766572307068,0.12073,87110.0,87099.0,0.06888705]
[1766572307711,0.12073,87110.0,87100.0,0.01148105]
[1766572307902,0.12073,87110.0,87099.0,0.06888705]
[1766572308618,0.18960842,87110.0,87099.0,0.01148118]
[1766572308818,0.12073,87110.0,87100.0,0.01148105]
[1766572309160,0.13220973,87110.0,87099.0,0.06888703]
[1766572309366,0.11219689,87110.0,87103.0,0.06888355]
[1766572309606,0.11219689,87110.0,87104.0,0.0688831]
[1766572310008,0.11219689,87110.0,87105.0,0.01148039]
[1766572310217,0.11219689,87110.0,87104.0,0.0688831]
[1766572310453,0.11219689,87110.0,87105.0,0.01148039]
[1766572310658,0.11219689,87110.0,87104.0,0.0688831]
[1766572311203,0.11219689,87110.0,87103.0,0.01148066]
[1766572311612,0.11219689,87110.0,87104.0,0.01148052]
[1766572312667,0.11219689,87110.0,87103.0,0.0688837]
[1766572312863,0.11219689,87110.0,87103.0,0.01148066]
[1766572313634,0.000549,87103.0,87098.0,0.01152]
[1766572313944,0.11219689,87110.0,87099.0,0.01148118]
[1766572314469,0.11219689,87110.0,87100.0,0.01148105]
[1766572314681,0.11219689,87110.0,87100.0,0.06888578]
[1766572314894,0.11219689,87110.0,87100.0,0.01148105]
[1766572315042,0.11219689,87110.0,87100.0,0.06888632]
[1766572315444,0.12073,87110.0,87100.0,0.06888632]
[1766572315872,0.13220973,87110.0,87098.0,0.01152]
[1766572316110,0.000549,87100.0,87098.0,0.0689265]
[1766572316280,0.000549,87100.0,87098.0,0.01152]
[1766572316488,0.12073,87103.0,87099.0,0.01148118]
[1766572316989,0.12073,87103.0,87100.0,0.01148105]
[1766572317691,0.12073,87103.0,87099.0,0.06888683]
[1766572317882,0.12073,87103.0,87100.0,0.01148105]
[1766572318507,0.12073,87103.0,87099.0,0.06888683]
[1766572318706,0.12073,87103.0,87100.0,0.01148105]
[1766572319515,0.12073,87103.0,87098.0,0.08040784]
[1766572321102,0.12073,87103.0,87098.0,0.02300131]
[1766572321933,0.12073,87103.0,87099.0,0.01148118]
[1766572322522,0.12073,87103.0,87098.0,0.08040766]
[1766572322741,0.12073,87103.0,87098.0,0.01152]
[1766572323106,0.12073,87103.0,87098.0,0.02300131]
[1766572323253,0.12073,87103.0,87099.0,0.01148118]
[1766572323459,0.12073,87103.0,87098.0,0.0804074]
[1766572324053,0.12073,87103.0,87099.0,0.01148118]
[1766572324665,0.11918,87110.0,87100.0,0.01148105]
[1766572324868,0.11918,87110.0,87099.0,0.06888664]
[1766572325111,0.11918,87109.0,87098.0,0.08040782]
[1766572325661,0.11918,87109.0,87098.0,0.02300131]
[1766572325917,0.13066,87108.0,87098.0,0.01152]
[1766572326170,0.01148013,87107.0,87098.0,0.01152]
[1766572326374,0.01148026,87106.0,87098.0,0.01152]
[1766572326593,0.01148026,87106.0,87098.0,0.010971]
[1766572326817,0.18806164,87106.0,87098.0,0.010971]
[1766572327047,0.11918,87105.0,87098.0,0.010971]
[1766572327247,0.01148052,87104.0,87098.0,0.010971]
[1766572327481,0.18806286,87105.0,87098.0,0.010971]
[1766572328117,0.13066039,87105.0,87098.0,0.010971]
[1766572328315,0.11918,87105.0,87098.0,0.010971]
[1766572329171,0.01148052,87104.0,87098.0,0.010971]
[1766572329385,0.13066052,87104.0,87098.0,0.010971]
[1766572329555,0.11918,87104.0,87098.0,0.010971]
[1766572332781,0.13066052,87104.0,87098.0,0.010971]
[1766572332938,0.11918,87103.0,87098.0,0.010971]
[1766572334356,0.17658359,87103.0,87098.0,0.010971]
[1766572334531,0.11918,87102.0,87098.0,0.010971]
[1766572344778,0.01148026,87106.0,87098.0,0.010971]
[1766572345739,0.06888171,87106.0,87098.0,0.010971]
[1766572346927,0.13066013,87107.0,87098.0,0.010971]
[1766572347136,0.01148013,87107.0,87098.0,0.010971]
[1766572347340,0.11918,87106.0,87098.0,0.010971]
[1766572347827,0.01148039,87105.0,87098.0,0.010971]
[1766572348020,0.11918,87106.0,87098.0,0.010971]
[1766572348165,0.1880616,87106.0,87098.0,0.010971]
[1766572348561,0.11918,87106.0,87098.0,0.010971]
[1766572348762,0.06888287,87105.0,87098.0,0.010971]
[1766572349111,0.01148052,87104.0,87098.0,0.010971]
[1766572349457,0.01148079,87102.0,87098.0,0.010971]
[1766572349662,0.01148079,87102.0,87091.0,0.03447116]
[1766572349663,0.11767,87098.0,87091.0,0.03447116]
[1766572349883,0.11767,87098.0,87088.0,0.06889575]
[1766572350087,0.11767,87098.0,87089.0,0.0114825]
[1766572350571,0.11767,87098.0,87089.0,0.06889491]
[1766572351380,0.11767,87098.0,87091.0,0.01148224]
[1766572352052,0.01148,87100.0,87098.0,0.000549]
[1766572352271,0.01148,87100.0,87092.0,0.01148211]
[1766572352647,0.01148,87100.0,87092.0,0.0688921]
[1766572352855,0.01148,87100.0,87094.0,0.01148184]
[1766572353028,0.01148,87104.0,87095.0,0.01148171]
[1766572353209,0.02296052,87104.0,87093.0,0.01148197]
[1766572353410,0.01148,87107.0,87098.0,0.06888741]
[1766572353653,0.01148,87107.0,87092.0,0.01148]
[1766572353654,0.01148026,87106.0,87095.0,0.01148171]
[1766572353796,0.08036081,87107.0,87095.0,0.01148171]
[1766572354002,0.06888159,87106.0,87094.0,0.06889094]
[1766572354223,0.01148039,87105.0,87094.0,0.01148184]
[1766572354425,0.06888159,87106.0,87094.0,0.01148184]
[1766572354856,0.01148026,87106.0,87094.0,0.06889104]
[1766572355029,0.01148026,87106.0,87095.0,0.01148171]
[1766572356096,0.08036098,87107.0,87096.0,0.01148158]
[1766572356097,0.02296013,87107.0,87096.0,0.01148158]
[1766572356351,0.01148,87107.0,87097.0,0.02296145]
[1766572356544,0.01148,87107.0,87097.0,0.01148]
[1766572356943,0.01148,87107.0,87098.0,0.01148131]
[1766572357146,0.01148,87107.0,87099.0,0.01148118]
[1766572357437,0.01148,87107.0,87100.0,0.01148105]
[1766572357649,0.01148,87107.0,87100.0,0.01148093]
[1766572357878,0.02480429,87109.0,87101.0,0.01148092]
[1766572358089,0.01148,87109.0,87097.0,0.01148]
[1766572358262,0.000549,87101.0,87098.0,0.01148131]
[1766572358473,0.12915,87109.0,87099.0,0.01148118]
[1766572358672,0.14062987,87109.0,87098.0,0.01148131]
[1766572359478,0.12915,87109.0,87097.0,0.08036822]
[1766572359670,0.14062987,87109.0,87097.0,0.02296145]
[1766572359822,0.00473332,87108.0,87097.0,0.02296145]
[1766572360023,0.01621332,87108.0,87097.0,0.02296145]
[1766572361226,0.01148013,87107.0,87097.0,0.02296145]
[1766572361595,0.19128359,87108.0,87097.0,0.02296145]
[1766572362471,0.01148013,87107.0,87097.0,0.01148]
[1766572362673,0.19128386,87108.0,87097.0,0.02296145]
[1766572363351,0.19128386,87108.0,87097.0,0.01148]
[1766572363669,0.13388332,87108.0,87097.0,0.01148]
[1766572364435,0.12240332,87108.0,87098.0,0.06888786]
[1766572364792,0.12240332,87108.0,87099.0,0.01148118]
[1766572365199,0.12240332,87108.0,87100.0,0.01148105]
[1766572365405,0.12240332,87108.0,87101.0,0.01148092]
[1766572365610,0.12240332,87108.0,87102.0,0.01148079]
[1766572367068,0.12240332,87108.0,87102.0,0.06888463]
[1766572367194,0.12240332,87108.0,87102.0,0.01148079]
[1766572368120,0.12240332,87108.0,87101.0,0.01148092]
[1766572368535,0.12240332,87108.0,87101.0,0.06888553]
[1766572369493,0.00473332,87108.0,87102.0,0.06888468]
[1766572369645,0.00473332,87108.0,87102.0,0.01148079]
[1766572370435,0.00473332,87108.0,87102.0,0.06888453]
[1766572370671,0.00473332,87108.0,87103.0,0.01148066]
[1766572371373,0.00120325,87108.0,87103.0,0.06888387]
[1766572371602,0.01148,87113.0,87106.0,0.01148026]
[1766572373418,0.01148,87113.0,87110.0,0.01147973]
[1766572373609,0.01148,87113.0,87104.0,0.24109018]
[1766572373611,0.11736,87123.0,87118.0,0.05739286]
[1766572373965,0.00011,87128.0,87123.0,0.06886812]
[1766572374153,0.00011,87128.0,87123.0,0.02295802]
[1766572374355,0.00011,87128.0,87123.0,0.01148]
[1766572374736,0.01147749,87127.0,87123.0,0.01148]
[1766572374904,4.97e-06,87128.0,87123.0,0.01148]
[1766572375099,0.06886272,87130.0,87123.0,0.01148]
[1766572375100,2.72e-06,87130.0,87123.0,0.01148]
[1766572375747,0.01147723,87129.0,87123.0,0.01148]
[1766572376375,0.05738683,87128.0,87123.0,0.01148]
[1766572376583,0.01147736,87128.0,87123.0,0.01148]
[1766572376924,0.01147982,87130.0,87123.0,0.01148]
[1766572377427,2.72e-06,87130.0,87123.0,0.01148]
[1766572377974,0.11736272,87130.0,87123.0,0.01148]
[1766572380046,2.72e-06,87130.0,87125.0,0.01147776]
[1766572380255,2.72e-06,87130.0,87127.0,0.01147749]
[1766572380671,2.72e-06,87130.0,87126.0,1e-08]
[1766572380993,2.72e-06,87130.0,87125.0,0.01147776]
[1766572381208,2.72e-06,87130.0,87123.0,0.02295802]
[1766572381497,2.72e-06,87130.0,87125.0,0.01147776]
[1766572381656,2.72e-06,87130.0,87124.0,0.01147789]
[1766572381993,2.72e-06,87130.0,87121.0,0.01148]
[1766572381994,0.12252,87123.0,87121.0,0.01148]
[1766572383432,0.00055,87121.0,87118.0,0.01148]
[1766572383627,0.00055,87121.0,87118.0,0.01152497]
[1766572383854,0.12252,87123.0,87118.0,0.01152497]
[1766572386118,0.12252,87123.0,87118.0,0.02300365]
[1766572386735,0.121971,87123.0,87118.0,0.02300365]
[1766572387991,0.12252,87129.0,87118.0,0.01152497]
[1766572388230,0.12252,87129.0,87119.0,0.01147855]
[1766572389059,0.12252,87129.0,87119.0,0.06887118]
[1766572389258,0.12252,87129.0,87120.0,0.01147842]
[1766572390163,0.12252,87129.0,87122.0,0.01147815]
[1766572390777,0.12252,87129.0,87121.0,0.01147828]
[1766572391177,0.12252,87129.0,87120.0,0.06886998]
[1766572391375,0.12252,87129.0,87118.0,0.01152497]
[1766572391766,0.01147736,87128.0,87118.0,0.01152497]
[1766572391963,0.19138344,87129.0,87118.0,0.01152497]
[1766572392226,0.01147736,87128.0,87118.0,0.01152497]
[1766572393287,0.01147749,87127.0,87118.0,0.01152497]
[1766572394466,0.0688655,87127.0,87118.0,0.01152497]
[1766572394667,0.12252,87129.0,87118.0,0.01152497]
[1766572394823,0.12252,87129.0,87119.0,0.01147855]
[1766572395025,0.12252,87129.0,87118.0,0.08039685]
[1766572395244,0.12252,87129.0,87119.0,0.01147855]
[1766572395454,0.01147736,87128.0,87118.0,0.02300365]
[1766572395661,0.1913834,87129.0,87118.0,0.02300365]
[1766572396737,0.19138389,87129.0,87118.0,0.01152497]
[1766572396935,0.05738703,87128.0,87118.0,0.01152497]
[1766572397161,0.06886439,87128.0,87118.0,0.01152497]
[1766572397409,0.05738762,87127.0,87118.0,0.01152497]
[1766572397545,0.01147776,87125.0,87118.0,0.01152497]
[1766572397936,0.06886709,87126.0,87118.0,0.01152497]
[1766572398414,0.13399763,87126.0,87118.0,0.01152497]
[1766572398992,0.12252,87126.0,87118.0,0.01152497]
[1766572400146,0.13399736,87128.0,87118.0,4.497e-05]
[1766572400357,0.00050403,87118.0,87115.0,0.01147907]
[1766572400561,0.00050403,87118.0,87116.0,0.01148]
[1766572400721,0.06886553,87127.0,87116.0,0.02295894]
[1766572400919,0.01158425,87127.0,87117.0,0.01147881]
[1766572401356,0.00010676,87127.0,87117.0,0.06887276]
[1766572401558,0.00010676,87127.0,87118.0,0.01147868]
[1766572402074,0.00010676,87127.0,87117.0,0.06887276]
[1766572402239,0.00010676,87127.0,87118.0,0.01147868]
[1766572402440,0.00010676,87127.0,87119.0,0.06887122]
[1766572402646,0.00010676,87127.0,87118.0,0.06887156]
[1766572402850,0.00010676,87127.0,87118.0,0.01147868]
[1766572403080,0.00010676,87127.0,87117.0,0.01147881]
[1766572403250,0.00010676,87127.0,87117.0,0.0688726]
[1766572403465,0.00010676,87127.0,87118.0,0.06887206]
[1766572404319,0.00010676,87127.0,87120.0,0.01147842]
[1766572404863,0.00010676,87127.0,87121.0,0.01129867]
[1766572405198,0.00010676,87127.0,87121.0,0.0686901]
[1766572405430,6.176e-05,87127.0,87121.0,0.01147828]
[1766572405750,6.176e-05,87127.0,87123.0,0.01147802]
[1766572405946,6.176e-05,87127.0,87122.0,0.06886893]
[1766572406313,6.176e-05,87127.0,87122.0,0.01147815]
[1766572407192,6.176e-05,87127.0,87123.0,0.01147802]
[1766572408223,6.176e-05,87127.0,87122.0,0.02295815]
[1766572408424,6.176e-05,87127.0,87122.0,0.01148]
[1766572408626,6.176e-05,87127.0,87122.0,0.02295815]
[1766572409030,6.176e-05,87127.0,87123.0,0.01147802]
[1766572409251,6.176e-05,87127.0,87122.0,0.02295815]
[1766572409252,0.0114767,87133.0,87122.0,0.08034832]
[1766572409593,0.19064073,87133.0,87122.0,0.01148]
[1766572409781,0.01147683,87132.0,87122.0,0.01148]
[1766572409927,0.01147683,87132.0,87122.0,0.02295815]
[1766572410123,0.06886103,87132.0,87122.0,0.01148]
[1766572410331,0.01147683,87132.0,87122.0,0.01148]
[1766572410562,0.19064085,87133.0,87122.0,0.02295815]
[1766572411000,0.06886112,87132.0,87122.0,0.01148]
[1766572411205,0.0114771,87130.0,87122.0,0.010931]
[1766572411516,0.12178,87130.0,87122.0,0.010931]
[1766572416879,0.12178,87130.0,87122.0,0.02240915]
[1766572417104,0.12178,87130.0,87122.0,0.010931]
[1766572418159,0.1332571,87130.0,87122.0,0.010931]
[1766572418563,0.12178,87130.0,87122.0,0.010931]
[1766572418773,0.1332571,87130.0,87122.0,0.010931]
[1766572419447,0.12178,87130.0,87122.0,0.010931]
[1766572420929,0.01147723,87129.0,87122.0,0.010931]
[1766572421095,0.18450353,87129.0,87122.0,0.010931]
[1766572421646,0.11564,87129.0,87122.0,0.010931]
[1766572423861,0.11564,87129.0,87122.0,0.02240915]
[1766572424055,0.11564,87129.0,87122.0,0.010931]
[1766572424540,0.11564,87129.0,87122.0,0.02240915]
[1766572424763,0.11564,87129.0,87122.0,0.07979983]
[1766572425732,0.11564,87129.0,87122.0,0.010931]
[1766572425942,0.11564,87129.0,87122.0,0.02240915]
[1766572426851,0.11564,87129.0,87122.0,0.010931]
[1766572427159,0.11564,87129.0,87123.0,0.01147802]
[1766572427651,0.11564,87129.0,87123.0,0.06886789]
[1766572427889,0.11564,87129.0,87126.0,0.01147763]
[1766572428065,0.115091,87129.0,87125.0,0.06886602]
[1766572428260,0.115091,87129.0,87126.0,0.06886567]
[1766572429170,0.06885667,87139.0,87126.0,0.01147763]
[1766572429171,0.11564,87139.0,87126.0,0.01147763]
[1766572429369,0.03628683,87138.0,87128.0,0.01147736]
[1766572429536,0.02481079,87138.0,87128.0,0.06886411]
[1766572429736,0.15192683,87138.0,87127.0,0.01148]
[1766572429944,0.06885837,87136.0,87127.0,0.01148]
[1766572430404,0.14045079,87136.0,87127.0,0.01148]
[1766572430540,0.02481079,87135.0,87127.0,0.01148]
[1766572430936,0.02481079,87135.0,87127.0,0.08034481]
[1766572431155,0.02481079,87135.0,87128.0,0.01147736]
[1766572431367,0.02481079,87135.0,87127.0,0.08034463]
[1766572431682,0.02481079,87135.0,87128.0,0.01147736]
[1766572432033,0.02481079,87135.0,87129.0,0.01147723]
[1766572432291,0.02481079,87135.0,87128.0,0.06886412]
[1766572432794,0.02481079,87135.0,87128.0,0.06886389]
[1766572432973,0.02481079,87135.0,87127.0,0.02295749]
[1766572433984,0.02481079,87135.0,87128.0,0.01147736]
[1766572434360,0.02481079,87135.0,87129.0,0.01147723]
[1766572434564,0.02481079,87135.0,87128.0,0.06886418]
[1766572434911,0.02481079,87135.0,87129.0,0.01147723]
[1766572437203,0.02481079,87135.0,87131.0,0.05738485]
[1766572437458,0.06885599,87139.0,87132.0,0.01148]
[1766572437722,0.17301897,87140.0,87132.0,0.01148]
[1766572438015,0.01147591,87139.0,87132.0,0.01148]
[1766572438445,0.13071591,87139.0,87132.0,0.01148]
[1766572438656,0.11924,87139.0,87132.0,0.01148]
[1766572439509,0.17661936,87140.0,87132.0,0.01148]
[1766572439948,0.11924,87140.0,87132.0,0.01148]
[1766572440957,0.118092,87140.0,87132.0,0.01148]
[1766572441159,0.01147604,87138.0,87132.0,0.010931]
[1766572441411,0.11924,87139.0,87132.0,0.010931]
[1766572441612,0.11924,87138.0,87132.0,0.010931]
[1766572441844,0.06885594,87139.0,87132.0,0.010931]
[1766572441845,0.01147618,87137.0,87132.0,1e-06]
[1766572442048,0.11924,87136.0,87132.0,1e-06]
[1766572446331,0.01147565,87141.0,87132.0,1e-06]
[1766572446555,0.11928902,87141.0,87132.0,1e-06]
[1766572447077,0.11928902,87141.0,87132.0,0.01147783]
[1766572447522,0.11928902,87141.0,87132.0,1e-06]
[1766572447726,0.01147578,87140.0,87130.0,0.01148]
[1766572447942,0.13071591,87139.0,87130.0,0.01148]
[1766572448163,0.11924,87138.0,87130.0,0.01148]
[1766572449881,0.02480207,87137.0,87130.0,0.01148]
[1766572450032,0.11924,87137.0,87130.0,0.01148]
[1766572450245,0.02480207,87136.0,87130.0,0.01148]
[1766572453909,0.14404207,87136.0,87130.0,0.01148]
[1766572454112,0.11924,87136.0,87130.0,0.01093]
[1766572454310,0.13071631,87136.0,87131.0,0.01148]
[1766572454980,0.11924,87136.0,87131.0,0.01148]
[1766572455962,0.18809787,87136.0,87131.0,0.01148]
[1766572456179,0.13071644,87135.0,87131.0,0.01148]
[1766572456547,0.06886182,87131.0,87130.0,0.00984527]
[1766572456742,0.11924,87129.0,87120.0,0.01147842]
[1766572457016,0.11924,87129.0,87121.0,0.01148]
[1766572457418,0.11924,87129.0,87121.0,0.02295828]
[1766572457666,0.11924,87128.0,87121.0,0.01148]
[1766572457873,0.01147828,87121.0,87106.0,0.05740026]
[1766572458024,0.01147828,87121.0,87104.0,0.01148052]
[1766572458025,0.11924,87115.0,87104.0,0.05740258]
[1766572458232,0.11924,87115.0,87107.0,0.01148]
[1766572458584,0.11924,87115.0,87107.0,0.02296013]
[1766572458788,0.11924,87115.0,87107.0,0.01148]
[1766572459228,0.11924,87115.0,87107.0,0.02296013]
[1766572459661,0.11924,87115.0,87107.0,0.01148]
[1766572460222,0.118691,87115.0,87107.0,0.01148]
[1766572461448,0.13017007,87115.0,87107.0,0.01148]
[1766572461657,0.10669262,87115.0,87107.0,0.01148]
[1766572462195,0.10669262,87115.0,87108.0,0.06887997]
[1766572462533,0.10669262,87115.0,87107.0,0.08036051]
[1766572463036,0.01147868,87118.0,87107.0,0.02296013]
[1766572463280,0.01147881,87117.0,87107.0,0.01148]
[1766572463479,0.01147868,87118.0,87107.0,0.08036064]
[1766572463679,0.01147868,87118.0,87107.0,0.08036074]
[1766572463887,0.13071855,87119.0,87107.0,0.08036074]
[1766572463888,0.13071855,87119.0,87108.0,0.01148]
[1766572464467,0.13071855,87119.0,87107.0,0.08036065]
[1766572464667,0.11924,87119.0,87108.0,0.01148]
[1766572464865,0.13071855,87119.0,87107.0,0.02296013]
[1766572465067,0.11924,87119.0,87109.0,0.01147987]
[1766572465664,0.18811163,87119.0,87108.0,0.01148]
[1766572465875,0.11924,87119.0,87109.0,0.01147987]
[1766572466234,0.11924,87119.0,87110.0,0.01147973]
[1766572466771,0.11924,87119.0,87109.0,0.06887919]
[1766572467116,0.11924,87119.0,87110.0,0.0688784]
[1766572467475,0.11924,87119.0,87110.0,0.01147973]
[1766572467808,0.11924,87119.0,87109.0,0.06887921]
[1766572468222,0.11924,87119.0,87110.0,0.01147973]
[1766572468593,0.01148,87123.0,87114.0,0.05739605]
[1766572468797,0.01148,87123.0,87116.0,0.01147894]
[1766572469001,0.01148,87123.0,87114.0,0.01147921]
[1766572469212,0.01148,87123.0,87115.0,0.01147907]
[1766572469400,0.01148,87123.0,87114.0,0.06887521]
[1766572469568,0.01148,87123.0,87113.0,0.06887544]
[1766572469770,0.01148,87123.0,87114.0,0.01147921]
[1766572469972,0.01148,87123.0,87115.0,0.01147907]
[1766572470224,0.01148,87123.0,87116.0,0.01147894]
[1766572470429,0.13488,87123.0,87116.0,0.01147894]
[1766572470731,0.01159,87125.0,87116.0,1.3e-07]
[1766572470908,0.01148,87125.0,87116.0,0.01147907]
[1766572471112,4.69e-06,87128.0,87117.0,0.01147881]
[1766572471412,0.36567644,87140.0,87120.0,0.01147842]
[1766572471610,0.03623242,87139.0,87125.0,0.05738862]
[1766572471811,0.04770833,87139.0,87125.0,0.01148]
[1766572471997,0.04770833,87139.0,87125.0,0.08034603]
[1766572471998,0.06885641,87138.0,87125.0,0.08034603]
[1766572472201,0.02475242,87138.0,87125.0,0.01148]
[1766572472380,0.1234,87138.0,87126.0,0.01147763]
[1766572472585,0.1234,87136.0,87126.0,0.01147763]
[1766572472786,0.02295591,87139.0,87127.0,1e-08]
[1766572473032,0.04770897,87139.0,87127.0,1e-08]
[1766572473206,0.04770897,87139.0,87127.0,0.05738697]
[1766572473442,0.04770897,87139.0,87126.0,0.01147887]
[1766572473633,0.01147604,87138.0,87127.0,0.05738695]
[1766572473848,0.1234,87138.0,87130.0,0.0114771]
[1766572474217,0.1234,87138.0,87129.0,0.05738576]
[1766572474391,0.1234,87138.0,87129.0,0.01147723]
[1766572474808,0.01147631,87136.0,87125.0,0.01148]
[1766572474981,0.000549,87129.0,87125.0,0.01148]
[1766572475183,0.000549,87129.0,87125.0,0.02295776]
[1766572475363,0.13487631,87136.0,87125.0,0.02295776]
[1766572475569,0.1234,87136.0,87125.0,0.02295776]
[1766572476179,0.1234,87136.0,87125.0,0.08034644]
[1766572476379,0.1234,87136.0,87126.0,0.01147763]
[1766572476780,0.1234,87136.0,87125.0,0.02295776]
[1766572477001,0.13487631,87136.0,87125.0,0.02295776]
[1766572477238,0.1234,87136.0,87130.0,0.0114771]
[1766572477421,0.1234,87136.0,87131.0,0.01147697]
[1766572477641,0.1209043,87136.0,87133.0,0.0114767]
[1766572477843,0.1209043,87136.0,87133.0,0.06886]
[1766572478054,0.1209043,87136.0,87132.0,0.05738416]
[1766572478432,0.1209043,87136.0,87133.0,0.0573833]
[1766572479018,4.902e-05,87141.0,87137.0,0.01147618]
[1766572479216,4.902e-05,87141.0,87138.0,0.01147604]
[1766572479634,4.902e-05,87141.0,87136.0,0.01147631]
[1766572480087,4.902e-05,87141.0,87138.0,0.01147604]
[1766572480387,4.902e-05,87141.0,87137.0,0.01147618]
[1766572481001,4.902e-05,87141.0,87133.0,0.0114767]
[1766572481002,4.902e-05,87141.0,87135.0,0.01147644]
[1766572481601,4.902e-05,87141.0,87136.0,0.01147631]
[1766572481803,0.11703062,87142.0,87137.0,0.01147618]
[1766572482010,0.11703062,87142.0,87136.0,0.0688578]
[1766572482211,0.11703062,87142.0,87139.0,0.01147591]
[1766572482548,0.11703062,87142.0,87139.0,0.06885498]
[1766572483061,0.11703062,87142.0,87138.0,0.06885628]
[1766572483855,0.11703062,87142.0,87138.0,0.01147604]
[1766572484172,0.11703062,87142.0,87138.0,0.06885627]
[1766572484314,0.11703062,87142.0,87139.0,0.01147591]
[1766572484757,0.00025188,87149.0,87139.0,0.01147591]
[1766572484758,0.12119,87148.0,87140.0,0.01147578]
[1766572484959,0.12119,87151.0,87140.0,0.01147578]
[1766572485161,0.12119,87151.0,87141.0,0.05737816]
[1766572485364,0.12119,87151.0,87142.0,0.01147552]
[1766572485806,0.12119,87151.0,87144.0,0.01147525]
[1766572486618,0.12119,87151.0,87143.0,0.01147539]
[1766572486797,0.12119,87151.0,87142.0,0.06885194]
[1766572487202,0.12119,87151.0,87141.0,0.01147565]
[1766572487565,0.12119,87151.0,87142.0,0.01147552]
[1766572488294,0.01148,87153.0,87140.0,0.01148]
[1766572488295,0.000549,87142.0,87140.0,0.01148]
[1766572488506,0.12119,87146.0,87140.0,0.01148]
[1766572490118,0.12119,87146.0,87140.0,0.010931]
[1766572490502,0.0688485,87148.0,87140.0,0.010931]
[1766572490675,0.01147473,87148.0,87140.0,0.010931]
[1766572490878,0.13266473,87148.0,87140.0,0.010931]
[1766572491180,0.12119,87148.0,87140.0,0.010931]
[1766572491788,0.01147486,87147.0,87140.0,0.010931]
[1766572492126,0.12119,87147.0,87140.0,0.010931]
[1766572492359,0.05737509,87146.0,87140.0,0.010931]
[1766572492495,0.06885008,87146.0,87140.0,0.010931]
[1766572492697,0.19004008,87146.0,87140.0,0.010931]
[1766572492959,0.12119,87145.0,87140.0,0.010931]
[1766572493136,0.06884959,87147.0,87140.0,0.010931]
[1766572493137,0.01147486,87147.0,87140.0,0.010931]
[1766572493336,0.06884852,87148.0,87140.0,0.010931]
[1766572493537,0.01147473,87148.0,87140.0,0.010931]
[1766572493718,0.06884852,87148.0,87140.0,0.010931]
[1766572493932,0.01147499,87146.0,87140.0,0.010931]
[1766572494430,0.01147512,87145.0,87140.0,0.010931]
[1766572494627,0.06885013,87146.0,87140.0,0.010931]
[1766572495548,0.01147525,87144.0,87140.0,0.010931]
[1766572495767,0.01147539,87143.0,87140.0,0.010931]
[1766572495997,0.06885249,87143.0,87140.0,0.010931]
[1766572496217,0.12119,87142.0,87140.0,0.010931]
[1766572498618,0.06885235,87143.0,87140.0,1e-08]
[1766572499848,0.11798,87142.0,87140.0,1e-08]
[1766572501844,0.06885246,87143.0,87140.0,1e-08]
[1766572502077,0.11798,87142.0,87140.0,1e-08]
[1766572502453,0.01147499,87146.0,87130.0,0.43453901]
[1766572502454,0.11798,87135.0,87130.0,0.36567644]
[1766572502666,0.11798,87135.0,87131.0,0.01148]
[1766572502796,0.12945644,87135.0,87131.0,0.01148]
[1766572502995,0.11798,87135.0,87131.0,0.01148]
[1766572504661,0.12945644,87135.0,87131.0,0.01148]
[1766572505322,0.06885791,87136.0,87131.0,0.01148]
[1766572505529,0.05738145,87137.0,87131.0,0.01148]
[1766572505840,0.068858,87136.0,87131.0,0.01148]
[1766572506690,0.11798,87135.0,87131.0,0.01148]
[1766572507825,0.12945644,87135.0,87125.0,0.04592]
[1766572508037,0.00055,87131.0,87126.0,0.01148]
[1766572508241,0.11798,87131.0,87126.0,0.01148]
[1766572508845,0.11798,87131.0,87118.0,0.06887145]
[1766572508846,0.12945723,87129.0,87111.0,0.0114796]
[1766572509048,0.12945723,87129.0,87117.0,0.01148]
[1766572509049,0.11798,87125.0,87117.0,0.01148]
[1766572509251,0.11798,87123.0,87118.0,0.01148]
[1766572510453,0.117431,87123.0,87118.0,0.01148]
[1766572513117,0.117431,87123.0,87116.0,1.3e-07]
[1766572513118,0.01147855,87119.0,87116.0,1.3e-07]
[1766572513346,0.11798,87117.0,87114.0,1.3e-07]
[1766572513834,0.12946,87134.0,87119.0,0.01147855]
[1766572514057,0.11798,87130.0,87122.0,0.01147815]
[1766572514247,0.11798,87130.0,87123.0,0.01147802]
[1766572514678,0.11798,87130.0,87123.0,0.068868]
[1766572514880,0.11798,87130.0,87122.0,0.06886847]
[1766572515135,0.12946,87130.0,87122.0,0.06886847]
[1766572515320,0.12946,87130.0,87121.0,0.06886965]
[1766572515513,0.12946,87130.0,87122.0,0.01147815]
[1766572515897,0.01148,87130.0,87122.0,0.01147815]
[1766572516322,0.01148,87130.0,87121.0,0.01147828]
[1766572516543,0.01148,87132.0,87122.0,0.01147815]
[1766572517379,0.0114771,87130.0,87120.0,0.36567644]